bitfinex-derivatives/quotes_BTCF0:USTF0_20250904
["timestamp","ask_amount","ask_price","bid_price","bid_amount"]
[1756954983873,1.19033263,111510.0,111500.0,1.19627027]
[1756954984671,1.19033263,111510.0,111500.0,1.21071027]
[1756954985258,1.19033263,111510.0,111500.0,1.19627027]
[1756954985967,1.19033263,111510.0,111500.0,0.94627027]
[1756954986168,2.29987609,111510.0,111500.0,0.92361027]
[1756954986362,2.54987609,111510.0,111500.0,0.08765027]
[1756954986563,2.653985,111510.0,111500.0,0.94647027]
[1756954987868,1.54444154,111510.0,111500.0,0.94647027]
[1756954988072,1.54444154,111510.0,111500.0,0.92361027]
[1756954988372,1.86630887,111510.0,111500.0,0.92361027]
[1756954988873,1.86630887,111510.0,111500.0,0.94647027]
[1756954989474,1.93036941,111510.0,111500.0,0.94647027]
[1756954989969,1.93036941,111510.0,111500.0,0.08765027]
[1756954990175,1.93036941,111510.0,111500.0,0.92361027]
[1756954990360,2.67006505,111510.0,111500.0,0.92361027]
[1756954990571,2.67006505,111510.0,111500.0,0.08765027]
[1756954990765,2.60600451,111510.0,111500.0,0.08765027]
[1756954990974,2.67006505,111510.0,111500.0,0.08765027]
[1756954991476,0.44934604,111510.0,111500.0,0.05452027]
[1756954991674,0.44934604,111510.0,111500.0,0.42436809]
[1756954991868,0.43334796,111510.0,111500.0,0.30452027]
[1756954992069,0.43334796,111510.0,111500.0,0.67436809]
[1756954992275,0.38532432,111510.0,111500.0,0.30452027]
[1756954992673,0.43335737,111510.0,111500.0,0.30452027]
[1756954992975,0.43335737,111510.0,111500.0,0.67436809]
[1756954993177,0.43235737,111510.0,111500.0,0.67436809]
[1756954993380,0.43235737,111510.0,111500.0,0.30452027]
[1756954993775,1.16220519,111510.0,111500.0,0.30452027]
[1756954993979,1.11417214,111510.0,111500.0,0.92508027]
[1756954994181,0.80834604,111510.0,111500.0,0.05452027]
[1756954994370,1.17719386,111510.0,111500.0,0.92672027]
[1756954995077,0.80734604,111510.0,111500.0,0.92672027]
[1756954995276,1.17719386,111510.0,111500.0,0.92672027]
[1756954995480,1.17725519,111510.0,111500.0,0.92672027]
[1756954995780,1.17825519,111510.0,111500.0,0.92672027]
[1756954996272,1.17825519,111510.0,111500.0,0.05452027]
[1756954996273,1.54816434,111510.0,111500.0,0.05452027]
[1756954996477,2.47396092,111510.0,111500.0,0.03168027]
[1756954996671,2.71929184,111510.0,111500.0,0.01715027]
[1756954996872,2.57496125,111510.0,111500.0,0.01715027]
[1756954997178,2.57596125,111510.0,111500.0,0.01715027]
[1756954998480,2.65624429,111510.0,111490.0,0.91740805]
[1756954998676,0.79475109,111500.0,111490.0,0.91740805]
[1756954998884,0.77736626,111500.0,111490.0,0.91720805]
[1756954999270,0.44736626,111500.0,111490.0,0.91720805]
[1756954999474,1.18727541,111500.0,111490.0,0.91720805]
[1756954999980,1.25852227,111500.0,111490.0,0.91720805]
[1756955000179,0.88861312,111500.0,111490.0,0.91720805]
[1756955000482,1.25852227,111500.0,111490.0,0.91720805]
[1756955000783,1.19448033,111500.0,111490.0,0.91720805]
[1756955001283,1.25851757,111500.0,111490.0,0.91720805]
[1756955001476,1.25851757,111500.0,111490.0,0.91680805]
[1756955002186,1.25951757,111500.0,111490.0,0.91680805]
[1756955002679,0.52060842,111500.0,111490.0,0.91680805]
[1756955002884,1.24051757,111500.0,111490.0,0.91680805]
[1756955003080,0.87060842,111500.0,111490.0,0.91680805]
[1756955003383,1.24251757,111500.0,111490.0,0.91680805]
[1756955003986,1.24351757,111500.0,111490.0,0.91680805]
[1756955004788,0.87360842,111500.0,111490.0,0.91680805]
[1756955004985,1.24351757,111500.0,111490.0,0.91680805]
[1756955007282,1.24351757,111500.0,111490.0,0.04492805]
[1756955008388,1.34720257,111500.0,111490.0,0.04492805]
[1756955010291,1.34720257,111500.0,111490.0,0.00755805]
[1756955010292,1.59720257,111500.0,111490.0,0.00755805]
[1756955010682,1.59720257,111500.0,111480.0,0.04905]
[1756955010884,0.73070915,111490.0,111480.0,0.04905]
[1756955011190,1.14598466,111490.0,111480.0,0.04885]
[1756955012086,1.15617332,111490.0,111480.0,0.04885]
[1756955014190,0.78626417,111490.0,111480.0,0.04885]
[1756955014386,1.15617332,111490.0,111480.0,0.04885]
[1756955014585,1.15717332,111490.0,111480.0,0.04885]
[1756955014782,1.22121056,111490.0,111480.0,0.04885]
[1756955015195,1.15717332,111490.0,111480.0,0.04885]
[1756955015492,1.22121056,111490.0,111480.0,0.04885]
[1756955016086,1.15717332,111490.0,111480.0,0.04885]
[1756955016390,1.22121056,111490.0,111480.0,0.04885]
[1756955018286,1.15717332,111490.0,111480.0,0.04885]
[1756955018594,1.20512455,111490.0,111480.0,0.04885]
[1756955019686,0.8352154,111490.0,111480.0,0.04885]
[1756955019994,1.20512455,111490.0,111480.0,0.04885]
[1756955020295,1.16237336,111490.0,111480.0,0.04885]
[1756955022897,0.79246421,111490.0,111480.0,0.04885]
[1756955023090,1.16237336,111490.0,111480.0,0.04885]
[1756955023693,1.16237336,111490.0,111480.0,0.04895]
[1756955024388,1.16237336,111490.0,111480.0,0.007]
[1756955024593,2.63984364,111490.0,111480.0,0.007]
[1756955024789,1.28011619,111490.0,111480.0,0.04463]
[1756955024989,0.73532432,111490.0,111480.0,1.16107]
[1756955025291,0.42532432,111490.0,111480.0,1.17018244]
[1756955025486,0.43329678,111490.0,111480.0,1.53097915]
[1756955025691,0.38532432,111490.0,111480.0,1.53545915]
[1756955026198,0.38532432,111490.0,111480.0,1.16555]
[1756955026594,0.38432432,111490.0,111480.0,1.16655]
[1756955027094,0.38432432,111490.0,111480.0,1.53645915]
[1756955027293,0.38432432,111490.0,111480.0,1.16655]
[1756955027600,0.38432432,111490.0,111480.0,1.53645915]
[1756955027900,0.38432432,111490.0,111480.0,1.54549246]
[1756955028196,0.38332432,111490.0,111480.0,1.54549246]
[1756955028390,0.38332432,111490.0,111480.0,1.54649246]
[1756955029685,0.38332432,111490.0,111480.0,1.53649915]
[1756955032097,0.38332432,111490.0,111480.0,1.54540927]
[1756955032694,0.02252432,111490.0,111480.0,0.67992927]
[1756955033099,0.02252432,111490.0,111480.0,1.54428927]
[1756955033701,0.02252432,111490.0,111480.0,1.90508927]
[1756955035202,0.02252432,111490.0,111480.0,1.92581572]
[1756955035901,0.02252432,111490.0,111480.0,3.30074317]
[1756955036598,0.02252432,111490.0,111480.0,2.19101572]
[1756955037001,0.02252432,111490.0,111480.0,2.56092487]
[1756955037398,0.02252432,111490.0,111480.0,3.30074317]
[1756955038487,0.02252432,111490.0,111480.0,1.82110657]
[1756955038694,0.02252432,111490.0,111480.0,2.19101572]
[1756955039199,0.02252432,111490.0,111480.0,1.94101572]
[1756955041099,0.02252432,111490.0,111480.0,1.93869572]
[1756955041301,0.43204686,111500.0,111480.0,1.93869572]
[1756955041502,0.45353178,111500.0,111490.0,0.40753915]
[1756955041703,0.45353061,111500.0,111490.0,0.40753915]
[1756955042904,0.45353061,111500.0,111490.0,1.26893915]
[1756955043300,0.45353061,111500.0,111490.0,0.89863]
[1756955043605,0.78353061,111500.0,111490.0,0.03763]
[1756955043806,0.78353061,111500.0,111490.0,0.89823]
[1756955044001,0.47353061,111500.0,111490.0,0.89823]
[1756955044206,0.77353061,111500.0,111490.0,0.89823]
[1756955044800,0.45353061,111500.0,111490.0,0.89823]
[1756955045006,0.47353061,111500.0,111490.0,0.89823]
[1756955045202,0.79353061,111500.0,111490.0,1.16343]
[1756955045404,0.47353061,111500.0,111490.0,1.16343]
[1756955045606,0.77353061,111500.0,111490.0,0.30283]
[1756955045799,1.02353061,111500.0,111490.0,0.30283]
[1756955045997,1.07343976,111500.0,111490.0,1.16291]
[1756955046202,1.09343976,111500.0,111490.0,1.16291]
[1756955046402,1.44343976,111500.0,111490.0,1.16291]
[1756955047001,1.09343976,111500.0,111490.0,1.16739]
[1756955047202,1.07343976,111500.0,111490.0,1.16739]
[1756955047399,1.09343976,111500.0,111490.0,1.16739]
[1756955047600,1.41443976,111500.0,111490.0,1.16739]
[1756955047803,1.41743976,111500.0,111490.0,1.16739]
[1756955048306,1.41743976,111500.0,111490.0,0.28437]
[1756955048610,1.46441222,111500.0,111490.0,0.86392]
[1756955048811,1.46641222,111500.0,111490.0,0.86392]
[1756955049010,1.41843976,111500.0,111490.0,0.86392]
[1756955049210,1.41843976,111500.0,111490.0,0.00448]
[1756955050102,1.482477,111500.0,111490.0,0.00448]
[1756955053012,1.482477,111500.0,111490.0,0.04345]
[1756955053411,1.482477,111500.0,111490.0,0.00448]
[1756955055412,1.11256785,111500.0,111490.0,0.00448]
[1756955055615,1.48264111,111500.0,111490.0,0.00448]
[1756955056310,1.48264111,111500.0,111490.0,0.01894]
[1756955058508,1.48264111,111500.0,111490.0,0.00448]
[1756955059618,1.11256785,111500.0,111490.0,0.00448]
[1756955059917,1.48264111,111500.0,111490.0,0.00448]
[1756955061015,1.57969086,111500.0,111490.0,0.00448]
[1756955062218,2.43629086,111500.0,111490.0,0.00448]
[1756955063017,2.43629086,111500.0,111480.0,0.02166]
[1756955063217,0.77885642,111490.0,111480.0,0.02166]
[1756955063418,1.18034017,111490.0,111480.0,0.02146]
[1756955063919,1.18034017,111490.0,111480.0,0.05045]
[1756955064615,1.18234017,111490.0,111480.0,0.05045]
[1756955064811,1.18234017,111490.0,111480.0,0.02594]
[1756955065013,2.39539228,111490.0,111480.0,0.01148]
[1756955065219,2.41144636,111490.0,111470.0,0.04655]
[1756955065416,1.88906455,111480.0,111470.0,0.04655]
[1756955065616,2.2605483,111480.0,111470.0,0.04635]
[1756955065824,0.80032852,111480.0,111470.0,0.04635]
[1756955066016,1.14032852,111480.0,111470.0,0.04635]
[1756955066718,1.09235701,111480.0,111470.0,0.04635]
[1756955066919,1.09235701,111480.0,111470.0,0.29635]
[1756955066920,0.75235701,111480.0,111470.0,0.29635]
[1756955067218,1.12235701,111480.0,111470.0,0.29595]
[1756955067418,1.12235701,111480.0,111470.0,0.29635]
[1756955068323,0.75228375,111480.0,111470.0,0.29635]
[1756955068625,1.12235701,111480.0,111470.0,0.29635]
[1756955069722,0.75235701,111480.0,111470.0,0.29635]
[1756955069911,0.38228375,111480.0,111470.0,0.29635]
[1756955070115,0.75235701,111480.0,111470.0,0.29635]
[1756955070316,0.76142148,111480.0,111470.0,0.29635]
[1756955070724,0.38228375,111480.0,111470.0,0.29635]
[1756955070924,0.75235701,111480.0,111470.0,0.29635]
[1756955071126,1.10235701,111480.0,111470.0,0.29635]
[1756955071328,1.13235701,111480.0,111470.0,0.29635]
[1756955072227,0.75235701,111480.0,111470.0,1.15227]
[1756955072422,0.77235701,111480.0,111470.0,1.15227]
[1756955072620,0.77235701,111480.0,111470.0,0.90227]
[1756955072621,1.45243027,111480.0,111470.0,0.90227]
[1756955072826,0.77235701,111480.0,111470.0,0.04635]
[1756955073026,0.40228375,111480.0,111470.0,0.04635]
[1756955073221,1.08235701,111480.0,111470.0,0.04635]
[1756955073629,1.09155829,111480.0,111470.0,0.04635]
[1756955073934,1.1595298,111480.0,111470.0,0.04635]
[1756955074724,0.8095298,111480.0,111470.0,0.04635]
[1756955075028,0.8295298,111480.0,111470.0,0.04635]
[1756955076222,0.43025526,111480.0,111470.0,0.04635]
[1756955076524,0.02148375,111480.0,111470.0,0.29635]
[1756955076923,0.80032852,111490.0,111470.0,0.29635]
[1756955077126,0.37007326,111480.0,111470.0,0.04655]
[1756955077436,0.06945526,111480.0,111470.0,0.90179]
[1756955077922,0.41804477,111480.0,111470.0,0.90179]
[1756955078124,0.43952852,111480.0,111470.0,0.90179]
[1756955079530,0.06945526,111480.0,111470.0,0.90179]
[1756955080232,0.04797151,111480.0,111470.0,0.90179]
[1756955081924,0.81679425,111490.0,111480.0,0.01448]
[1756955082133,1.15679425,111490.0,111480.0,0.03767]
[1756955083633,1.15779425,111490.0,111480.0,0.03767]
[1756955084036,1.15979425,111490.0,111480.0,0.03767]
[1756955086435,1.15979425,111490.0,111480.0,0.89055]
[1756955086634,1.15979425,111490.0,111480.0,0.03767]
[1756955089441,1.15979425,111490.0,111480.0,0.01448]
[1756955089636,1.15979425,111490.0,111480.0,0.03767]
[1756955090442,1.15979425,111490.0,111470.0,0.04523]
[1756955090644,0.77896069,111480.0,111470.0,0.89775]
[1756955090849,0.45037118,111480.0,111470.0,0.89755]
[1756955091348,0.82044444,111480.0,111470.0,0.89755]
[1756955091936,0.80044444,111480.0,111470.0,0.89731]
[1756955092146,0.82044444,111480.0,111470.0,0.89731]
[1756955092448,0.80044444,111480.0,111470.0,0.04503]
[1756955092642,1.08235701,111480.0,111470.0,0.04503]
[1756955092841,1.51646751,111480.0,111470.0,0.87428]
[1756955093044,1.51646751,111480.0,111470.0,0.02144]
[1756955093349,1.14639425,111480.0,111470.0,0.02184]
[1756955093544,1.14639425,111480.0,111470.0,0.04503]
[1756955093849,1.14647255,111480.0,111470.0,0.04463]
[1756955094044,1.14647255,111480.0,111470.0,0.04503]
[1756955094452,1.14647255,111480.0,111470.0,0.02184]
[1756955094851,2.25669233,111480.0,111470.0,0.02184]
[1756955095343,2.25669233,111480.0,111470.0,0.02144]
[1756955095544,2.25669233,111480.0,111470.0,0.02184]
[1756955095743,2.25669233,111480.0,111470.0,0.04503]
[1756955096452,2.19265509,111480.0,111470.0,0.02184]
[1756955097152,2.19265509,111480.0,111470.0,0.04503]
[1756955097352,2.25669233,111480.0,111470.0,0.04503]
[1756955097853,1.14647255,111480.0,111470.0,0.04503]
[1756955098853,1.08243531,111480.0,111470.0,0.04503]
[1756955100253,0.77243531,111480.0,111470.0,0.04503]
[1756955100455,1.09243531,111480.0,111470.0,0.04503]
[1756955100754,0.77243531,111480.0,111470.0,0.04503]
[1756955101255,1.10243531,111480.0,111470.0,0.04503]
[1756955101551,0.8005079,111480.0,111470.0,0.04503]
[1756955101753,0.8205079,111480.0,111470.0,0.04503]
[1756955102354,1.1705079,111480.0,111470.0,0.04503]
[1756955102853,1.54058116,111480.0,111470.0,0.0074]
[1756955103753,2.23265509,111480.0,111470.0,0.0074]
[1756955103948,2.29669233,111480.0,111470.0,0.0074]
[1756955105155,0.81639929,111480.0,111470.0,0.0074]
[1756955105345,2.29669233,111480.0,111470.0,0.0074]
[1756955105550,2.29669233,111480.0,111470.0,0.04507]
[1756955106152,1.12243531,111480.0,111470.0,0.04507]
[1756955106359,1.49250857,111480.0,111470.0,0.04507]
[1756955106755,1.50250857,111480.0,111470.0,0.04507]
[1756955107956,1.13243531,111480.0,111470.0,0.04507]
[1756955109854,1.19647255,111480.0,111470.0,0.04507]
[1756955110050,0.82639929,111480.0,111470.0,0.04507]
[1756955110255,1.19647255,111480.0,111470.0,0.04507]
[1756955111961,1.13243531,111480.0,111470.0,0.04507]
[1756955112966,2.30669233,111480.0,111470.0,0.04507]
[1756955114565,2.24265509,111480.0,111470.0,0.04507]
[1756955115166,0.76236205,111480.0,111470.0,0.04507]
[1756955115464,2.24301041,111480.0,111470.0,0.04507]
[1756955115964,2.30704765,111480.0,111470.0,0.04507]
[1756955116559,2.30704765,111480.0,111470.0,0.0074]
[1756955116765,2.30704765,111480.0,111470.0,0.04583]
[1756955119467,1.19656138,111480.0,111470.0,0.04583]
[1756955119666,1.13252414,111480.0,111470.0,0.04583]
[1756955119868,1.50268623,111480.0,111470.0,0.04583]
[1756955120167,0.38236205,111480.0,111470.0,0.04583]
[1756955120368,2.18301041,111480.0,111470.0,0.04583]
[1756955121372,2.24704765,111480.0,111470.0,0.04583]
[1756955121763,2.24704765,111480.0,111470.0,0.02216]
[1756955121970,2.24704765,111480.0,111470.0,0.0074]
[1756955123773,2.24704765,111480.0,111470.0,0.01188]
[1756955124875,2.18301041,111480.0,111470.0,0.01188]
[1756955125171,3.02997041,111480.0,111470.0,0.01188]
[1756955125661,2.18301041,111480.0,111470.0,0.01188]
[1756955125866,2.26329345,111480.0,111470.0,0.03843]
[1756955126174,0.78264509,111480.0,111470.0,0.03843]
[1756955126375,2.18301041,111480.0,111470.0,0.03843]
[1756955126572,2.18301041,111480.0,111470.0,0.01476]
[1756955127074,2.26329345,111480.0,111470.0,0.01476]
[1756955127266,2.18301041,111480.0,111470.0,0.01476]
[1756955127468,2.26329345,111480.0,111460.0,0.0462]
[1756955127761,0.79516597,111470.0,111460.0,0.0462]
[1756955127965,1.13672802,111470.0,111460.0,0.046]
[1756955129071,1.13672802,111470.0,111460.0,0.047]
[1756955129380,1.13672802,111470.0,111460.0,0.048]
[1756955129768,0.76656593,111470.0,111460.0,0.048]
[1756955129967,1.13672802,111470.0,111460.0,0.048]
[1756955130174,1.17672802,111470.0,111460.0,0.048]
[1756955130472,1.17672802,111470.0,111460.0,0.0098]
[1756955130679,1.17672802,111470.0,111460.0,0.04823]
[1756955130680,1.11252414,111470.0,111460.0,0.04823]
[1756955130869,1.11252414,111470.0,111450.0,0.04920367]
[1756955130870,1.11613414,111470.0,111450.0,0.04920367]
[1756955131172,1.9253414,111460.0,111450.0,0.03444367]
[1756955131363,2.31690345,111460.0,111450.0,0.03199367]
[1756955131567,2.30078487,111460.0,111450.0,0.03199367]
[1756955132268,2.31690345,111460.0,111450.0,0.03399367]
[1756955132465,2.23662041,111460.0,111450.0,0.03639367]
[1756955132964,2.66179507,111460.0,111450.0,0.0004]
[1756955133167,2.68924418,111460.0,111410.0,0.35491]
[1756955133367,1.84044836,111420.0,111410.0,0.35779]
[1756955133572,2.20101041,111420.0,111410.0,0.35819]
[1756955133770,2.20101041,111420.0,111410.0,0.35779]
[1756955133771,2.210108,111420.0,111410.0,0.35779]
[1756955133973,2.210108,111420.0,111410.0,0.35819]
[1756955134174,0.72036205,111420.0,111410.0,0.35779]
[1756955134370,0.72036205,111420.0,111410.0,0.35819]
[1756955134371,1.86101041,111420.0,111410.0,0.35819]
[1756955134670,0.02156205,111420.0,111410.0,0.96899]
[1756955134870,0.02156205,111420.0,111410.0,1.33915209]
[1756955135571,0.02156205,111420.0,111410.0,1.34115209]
[1756955135973,0.001,111420.0,111410.0,1.34515209]
[1756955136180,0.001,111420.0,111410.0,1.34315209]
[1756955136372,0.001,111420.0,111410.0,1.43487549]
[1756955136572,0.001,111420.0,111410.0,1.48487549]
[1756955136873,0.07335121,111440.0,111410.0,1.48487549]
[1756955137181,0.4649568,111440.0,111430.0,0.03843]
[1756955137476,0.09479471,111440.0,111430.0,0.91455]
[1756955137678,0.0215435,111440.0,111430.0,1.53471209]
[1756955137984,0.0215435,111440.0,111430.0,1.89551209]
[1756955138278,0.0001,111460.0,111450.0,0.01476]
[1756955138488,0.17,111460.0,111450.0,1.27631]
[1756955139473,0.172,111460.0,111450.0,1.27631]
[1756955139688,0.002,111460.0,111450.0,1.89647209]
[1756955139981,0.002,111460.0,111450.0,1.52631]
[1756955140176,0.002,111460.0,111450.0,1.89647209]
[1756955141074,0.73146209,111480.0,111470.0,0.03632]
[1756955141285,1.10136209,111480.0,111470.0,0.91768]
[1756955141475,1.10096209,111480.0,111470.0,0.91768]
[1756955141782,0.7312,111480.0,111470.0,0.91768]
[1756955141979,1.10136209,111480.0,111470.0,0.91768]
[1756955142379,1.10336209,111480.0,111470.0,0.91768]
[1756955142976,1.10436209,111480.0,111470.0,0.03632]
[1756955143176,1.10436209,111480.0,111470.0,0.91732]
[1756955144569,1.47452418,111480.0,111470.0,0.03632]
[1756955144878,2.51293134,111480.0,111460.0,0.01381]
[1756955145082,1.02904507,111470.0,111460.0,0.0001]
[1756955145378,1.36904507,111470.0,111450.0,0.89698]
[1756955145582,0.73096209,111460.0,111450.0,0.91959]
[1756955145878,1.11096209,111460.0,111450.0,0.91949]
[1756955146883,1.11096209,111460.0,111450.0,0.92249]
[1756955147381,1.11096209,111460.0,111450.0,0.91949]
[1756955148185,1.11296209,111460.0,111450.0,0.91949]
[1756955149081,0.7428,111460.0,111450.0,0.03737]
[1756955149288,1.11296209,111460.0,111450.0,0.01476]
[1756955149481,1.16104507,111460.0,111440.0,1.91146]
[1756955149779,0.73096209,111450.0,111440.0,1.91066]
[1756955149975,1.11096209,111450.0,111440.0,1.91096]
[1756955150283,1.13301738,111450.0,111440.0,2.7938]
[1756955150483,1.13301738,111450.0,111440.0,0.92101]
[1756955151284,1.11301738,111450.0,111440.0,0.92101]
[1756955151779,0.40285529,111450.0,111440.0,0.92101]
[1756955152084,1.07401738,111450.0,111440.0,0.92101]
[1756955152284,0.70385529,111450.0,111440.0,0.92101]
[1756955152485,1.07401738,111450.0,111440.0,0.92101]
[1756955152687,0.70385529,111450.0,111440.0,0.92101]
[1756955152879,1.07401738,111450.0,111440.0,0.92101]
[1756955154392,3.36662663,111450.0,111440.0,0.0004]
[1756955154584,3.46406664,111450.0,111440.0,0.0004]
[1756955154782,3.41598366,111450.0,111440.0,0.0004]
[1756955155181,3.41598366,111450.0,111430.0,0.0002]
[1756955155488,0.77896227,111440.0,111430.0,0.0002]
[1756955155785,1.12101756,111440.0,111420.0,0.92136]
[1756955155986,0.3608,111430.0,111420.0,0.92136]
[1756955156182,1.08301738,111430.0,111420.0,0.92116]
[1756955157088,0.71285529,111430.0,111420.0,0.92316]
[1756955157290,1.08301738,111430.0,111420.0,0.92316]
[1756955157688,1.08301738,111430.0,111420.0,0.92236]
[1756955158077,1.08301738,111430.0,111420.0,0.92276]
[1756955158284,1.08301738,111430.0,111420.0,0.92264]
[1756955158480,1.13101756,111430.0,111420.0,0.92364]
[1756955158681,0.38285529,111430.0,111420.0,1.17364]
[1756955158886,0.02205529,111430.0,111420.0,1.54380209]
[1756955159081,0.4335197,111440.0,111430.0,0.03632]
[1756955159387,0.56558747,111440.0,111430.0,0.03632]
[1756955159791,0.93574956,111440.0,111430.0,0.03632]
[1756955160684,0.56658747,111440.0,111430.0,0.40648209]
[1756955160884,0.56658747,111440.0,111430.0,0.03632]
[1756955161590,0.93674956,111440.0,111430.0,0.03632]
[1756955161985,0.56658747,111440.0,111430.0,0.03632]
[1756955162185,0.93674956,111440.0,111430.0,0.03632]
[1756955162494,0.48658747,111440.0,111430.0,0.03632]
[1756955162691,1.18674956,111440.0,111430.0,0.91992]
[1756955162879,0.48658747,111440.0,111430.0,0.91992]
[1756955163487,0.85674956,111440.0,111430.0,0.91992]
[1756955163894,1.17674956,111440.0,111430.0,0.30152]
[1756955164387,1.17674956,111440.0,111430.0,1.18588]
[1756955165188,1.22474974,111440.0,111430.0,1.18588]
[1756955165488,1.22474974,111440.0,111430.0,1.18628]
[1756955165689,1.22474974,111440.0,111430.0,1.1864]
[1756955165898,1.22474974,111440.0,111430.0,1.1858]
[1756955166195,1.22474974,111440.0,111430.0,1.18564]
[1756955168081,1.20474974,111440.0,111430.0,1.18564]
[1756955168286,0.90474974,111440.0,111430.0,1.18564]
[1756955168583,1.18674956,111440.0,111430.0,1.18564]
[1756955168790,0.81658747,111440.0,111430.0,1.18564]
[1756955168989,1.18674956,111440.0,111430.0,1.18564]
[1756955169687,0.82674956,111440.0,111430.0,0.92044]
[1756955169890,0.45658747,111440.0,111430.0,0.92044]
[1756955170288,0.81658747,111440.0,111430.0,0.92044]
[1756955170583,0.82674956,111440.0,111430.0,0.92044]
[1756955170797,1.16674956,111440.0,111430.0,0.92088]
[1756955171096,1.16674956,111440.0,111430.0,0.92072]
[1756955171493,1.21474974,111440.0,111430.0,0.92072]
[1756955172699,1.21474974,111440.0,111430.0,0.92032]
[1756955173094,1.21474974,111440.0,111430.0,0.92072]
[1756955173298,1.2308602,111440.0,111430.0,0.92072]
[1756955173498,1.2308602,111440.0,111430.0,0.03672]
[1756955173694,1.2308602,111440.0,111430.0,0.92024]
[1756955174695,0.86069811,111440.0,111430.0,0.92024]
[1756955174900,1.2308602,111440.0,111430.0,0.92024]
[1756955175702,1.2308602,111440.0,111430.0,0.92472]
[1756955177094,0.86069811,111440.0,111430.0,0.92472]
[1756955177388,1.2308602,111440.0,111430.0,0.92472]
[1756955177589,1.23109422,111440.0,111430.0,0.92472]
[1756955177999,1.23109422,111440.0,111430.0,0.0412]
[1756955178198,1.11069811,111440.0,111430.0,0.00488]
[1756955178403,2.60831021,111440.0,111420.0,0.90039]
[1756955178594,0.73119611,111430.0,111420.0,0.89959]
[1756955178794,1.10326388,111430.0,111420.0,0.92398]
[1756955179195,2.21445221,111430.0,111410.0,0.92358]
[1756955179397,0.81300607,111430.0,111420.0,0.01391]
[1756955179594,1.54420218,111430.0,111420.0,0.0014]
[1756955179797,1.54420218,111430.0,111420.0,0.001]
[1756955180100,2.90539051,111430.0,111420.0,0.0014]
[1756955180299,2.90539051,111430.0,111410.0,0.01371]
[1756955180499,0.42495067,111420.0,111410.0,0.0399]
[1756955180700,1.19741455,111420.0,111410.0,0.0397]
[1756955180906,1.19541455,111420.0,111410.0,0.0397]
[1756955181208,0.82501844,111420.0,111410.0,0.0397]
[1756955181513,1.19541455,111420.0,111410.0,0.0427]
[1756955182108,2.24245221,111420.0,111410.0,0.0397]
[1756955182404,2.24145221,111420.0,111410.0,0.0407]
[1756955182907,0.75986777,111420.0,111410.0,0.0407]
[1756955183107,0.4279642,111420.0,111410.0,0.2927]
[1756955183304,1.13836031,111420.0,111410.0,0.2927]
[1756955183602,0.44056031,111420.0,111410.0,0.2927]
[1756955183794,0.02206777,111420.0,111410.0,0.2927]
[1756955184000,0.38286383,111430.0,111420.0,0.0377]
[1756955184206,0.7670145,111430.0,111420.0,0.0377]
[1756955184406,0.70286383,111430.0,111420.0,0.0377]
[1756955184598,0.70286383,111430.0,111420.0,0.93382]
[1756955184599,0.42286383,111430.0,111420.0,0.93382]
[1756955184805,0.71286383,111430.0,111420.0,0.93382]
[1756955185002,0.7770145,111430.0,111420.0,0.93382]
[1756955185198,1.14741061,111430.0,111420.0,0.93382]
[1756955185399,1.14841061,111430.0,111420.0,0.93382]
[1756955185704,0.4480145,111430.0,111420.0,0.93382]
[1756955185907,1.17841061,111430.0,111420.0,0.93382]
[1756955186309,1.11425994,111430.0,111420.0,0.93382]
[1756955186809,0.39386383,111430.0,111420.0,0.93382]
[1756955187013,0.44196326,111430.0,111420.0,0.93382]
[1756955187205,0.39386383,111430.0,111420.0,0.93382]
[1756955187409,0.76425994,111430.0,111420.0,0.93382]
[1756955188713,1.09425994,111430.0,111420.0,0.93382]
[1756955188915,0.76425994,111430.0,111420.0,0.93382]
[1756955189214,0.39386383,111430.0,111420.0,0.93382]
[1756955189417,0.76425994,111430.0,111420.0,0.93382]
[1756955190516,0.39386383,111430.0,111420.0,1.55421611]
[1756955190816,0.39386383,111430.0,111420.0,1.18382]
[1756955192228,0.76386383,111430.0,111420.0,0.2877]
[1756955192424,0.70386383,111430.0,111420.0,1.18166]
[1756955192623,1.07425994,111430.0,111420.0,1.18166]
[1756955192817,0.75425994,111430.0,111420.0,1.18166]
[1756955193017,1.12425994,111430.0,111420.0,1.18166]
[1756955193221,0.38386383,111430.0,111420.0,1.18166]
[1756955193421,1.11425994,111430.0,111420.0,1.18166]
[1756955193622,0.75425994,111430.0,111420.0,1.18166]
[1756955194731,0.38386383,111430.0,111420.0,1.18166]
[1756955194918,0.75425994,111430.0,111420.0,1.18166]
[1756955195731,0.02306383,111430.0,111420.0,2.17805611]
[1756955196828,0.02306383,111430.0,111420.0,3.02404444]
[1756955197123,0.00153443,111430.0,111420.0,3.37896004]
[1756955197323,0.3609,111450.0,111440.0,0.0377]
[1756955197520,0.77929554,111460.0,111450.0,0.01351]
[1756955197715,1.19193818,111460.0,111450.0,0.0377]
[1756955197925,0.82154207,111460.0,111450.0,0.0377]
[1756955198426,0.82194207,111460.0,111450.0,0.0377]
[1756955199022,0.25314207,111460.0,111450.0,0.0377]
[1756955199222,0.25474207,111460.0,111450.0,0.0377]
[1756955199424,0.25514207,111460.0,111450.0,0.0377]
[1756955200321,0.20704264,111460.0,111450.0,0.0377]
[1756955202125,0.20704264,111460.0,111450.0,0.65809611]
[1756955202335,0.07704264,111460.0,111450.0,1.01889611]
[1756955202637,0.07664264,111460.0,111450.0,1.01889611]
[1756955202820,0.004,111460.0,111450.0,1.38929222]
[1756955203225,0.0044,111460.0,111450.0,1.38929222]
[1756955203428,0.004,111460.0,111450.0,1.38929222]
[1756955203624,0.0044,111460.0,111450.0,1.38929222]
[1756955203828,0.0044,111460.0,111450.0,2.13008444]
[1756955204028,0.004,111460.0,111450.0,2.13008444]
[1756955204332,0.001,111460.0,111450.0,1.53666]
[1756955204535,0.0014,111460.0,111450.0,1.90705611]
[1756955206931,0.0014,111460.0,111450.0,1.82173611]
[1756955208234,0.0014,111460.0,111450.0,2.08693611]
[1756955209337,0.02326321,111460.0,111450.0,2.08693611]
[1756955210632,0.02326321,111460.0,111450.0,2.45733222]
[1756955211136,0.08456321,111460.0,111450.0,3.01042444]
[1756955211836,0.4576456,111480.0,111470.0,0.03915]
[1756955212037,0.4683456,111480.0,111470.0,1.29438611]
[1756955212433,0.4775456,111480.0,111470.0,0.03915]
[1756955212640,1.13834171,111480.0,111470.0,0.92367]
[1756955213936,0.4599456,111480.0,111470.0,0.92367]